Cogmind - Beta 13 @@@ ROGUE MODE // 2024.05.14 @ 19:34:41 Player: rel Result: Smashed by cave-in Performance ------------- Evolutions (0) 0 Regions Visited (4) 800 Robots Destroyed (42) 210 Value Destroyed (908) 908 Prototype IDs (2) 40 Alien Tech Used (0) 0 Bonus (343) 343 TOTAL SCORE: 2301 Bonus ------- High Alert Combat Kills 43 Aligned with FarCom 300 Cogmind --------- Core Integrity 0/250 Matter 235/300 Energy 100/100 System Corruption 9% Temperature Cool (5) Movement Rolling (105) Ox1 Location -9/Mines Parts ------- > --- POWER (1) -------- (None) > --- PROPULSION (2) --- Armored Wheel > --- UTILITY (2) ------ Large Storage Unit > --- WEAPON (2) ------- Light Cannon Mini Grenade Launcher > --- INVENTORY (15) --- Aluminum Leg Aluminum Leg Armored Wheel Armored Wheel Flying Fortress v7 Structural Scanner Experimental Sensor Array High-powered Tractor Beam Heavy EM Pulse Gun Assault Rifle Rocket Launcher Mace Peak State ------------ > --- POWER ------------ Ion Engine > --- PROPULSION ------- Armored Wheel Armored Wheel > --- UTILITY ---------- Large Storage Unit Visual Processing Unit > --- WEAPON ----------- Heavy EM Pulse Gun Latent Energy Streamer > --- INVENTORY -------- Ion Engine Aluminum Leg Aluminum Leg Armored Wheel Armored Wheel Flying Fortress v7 Structural Scanner High-powered Tractor Beam Heavy EM Pulse Gun Assault Rifle Light Cannon Rocket Launcher [Rating: 24] Favorites ----------- Power Ion Engine Engine Ion Engine Propulsion Armored Wheel Leg Aluminum Leg Wheel Armored Wheel Utility Large Storage Unit Device Seismic Detector Storage Large Storage Unit Processor Visual Processing Unit Protection Propulsion Shielding Weapon Heavy EM Pulse Gun Energy Gun Heavy EM Pulse Gun Energy Cannon Latent Energy Streamer Ballistic Gun Assault Rifle Ballistic Cannon Light Cannon Launcher Grenade Launcher Build | -11 -10 -10 -10 -9 ------- Run | Yrd Mat Min Exi Min Slots Evolved . | . . . . . Power . | . . . . . Propulsion . | . . . . . Utility . | . . . . . Weapon . | . . . . . Parts Attached 32 | 7 10 7 3 5 Power 3 | 1 . 1 . 1 Engine 3 | 1 . 1 . 1 Core . | . . . . . Reactor . | . . . . . Propulsion 6 | 3 2 . 1 . Treads . | . . . . . Leg 1 | 1 . . . . Wheel 5 | 2 2 . 1 . Hover . | . . . . . Flight . | . . . . . Utility 6 | 1 5 . . . Device 1 | . 1 . . . Storage 3 | 1 2 . . . Processor 1 | . 1 . . . Hackware . | . . . . . Protection 1 | . 1 . . . Artifact . | . . . . . Weapon 17 | 2 3 6 2 4 Energy Gun 7 | 2 . 5 . . Energy Cannon 2 | . . . 2 . Ballistic Gun 3 | . 1 1 . 1 Ballistic Cannon 2 | . 1 . . 1 Launcher 3 | . 1 . . 2 Special Weapon . | . . . . . Impact Weapon . | . . . . . Slashing Weapon . | . . . . . Piercing Weapon . | . . . . . Special Melee Weapon . | . . . . . Unidentified Prototypes 2 | . . . 2 . Parts Lost 9 | . 1 3 . 5 Power 3 | . . 1 . 2 Propulsion 1 | . . . . 1 Utility 1 | . . . . 1 Weapon 4 | . 1 2 . 1 Highest Loss Streak 3 | . 1 2 . 3 To Critical Strikes . | . . . . . Average Slot Usage (%) 94 | . 97 98 88 98 Engine 13 | . 14 13 14 13 Wheel 28 | . 28 28 28 28 Device 1 | . 2 . . . Storage 14 | . 14 14 14 14 Processor 12 | . 9 14 14 14 Energy Gun 8 | . . 26 17 . Ballistic Gun 8 | . 13 . . 12 Ballistic Cannon 5 | . 8 . . 13 Launcher 2 | . 4 . . 1 Naked Turns . | . . . . . Heaviest Build 38 | 14 31 31 38 30 Greatest Support 26 | 26 26 24 24 24 Greatest Overweight (x) 2 | . 2 1 1 1 Average Overweight (x) . | . . . 1 1 Largest Inventory Capacity 15 | 8 15 15 15 15 Average Capacity 14 | 6 14 15 15 15 Most Carried 15 | 5 12 12 15 15 Average Carried 11 | 3 8 10 13 14 Final Capacity 15 | 8 15 15 15 15 Final Carried 15 | 4 12 10 15 15 Class Distribution -------------------- 100% | Mutant Dominant Class ---------------- Mutant | -10/Materials Mutant | -10/Mines Mutant | -10/Exiles Mutant | -9/Mines Resources | -11 -10 -10 -10 -9 ----------- Run | Yrd Mat Min Exi Min Matter Collected 858 | 222 327 162 . 147 Remotely . | . . . . . Salvage Created 920 | . 543 149 . 228 Parts 72 | . 53 11 . 8 Haulers Intercepted 2 | . 2 . . . Recyclers Shooed 1 | . 1 . . . Parts Field Recycled . | . . . . . Retrieved Matter . | . . . . . Parts Self-Destructed . | . . . . . Prevented . | . . . . . Kills | -11 -10 -10 -10 -9 ------- Run | Yrd Mat Min Exi Min Combat Hostiles Destroyed 29 | . 16 5 . 8 Guns 6 | . 3 3 . . Cannons 2 | . 1 . . 1 AOE 21 | . 12 2 . 7 Classes Destroyed 8 | . 6 . . 2 Worker 2 | . 2 . . . Builder 5 | . 5 . . . Hauler 2 | . 2 . . . Recycler 1 | . . . . 1 Watcher 3 | . 3 . . . Swarmer 11 | . 6 3 . 2 Grunt 17 | . 10 2 . 5 Brawler 1 | . . . . 1 Best Kill Streak 13 | . 13 3 . 6 Combat Bots Only 6 | . 6 3 . 6 Max Kills in Single Turn 4 | . 4 1 . 3 Gunslinging . | . . . . . Exploded 3 | . 3 1 . 3 Melee . | . . . . . Uniques/NPCs Destroyed . | . . . . . Combat | -11 -10 -10 -10 -9 -------- Run | Yrd Mat Min Exi Min Hostile Shots Fired 95 | . 31 29 . 35 Missed 25 | . 5 8 . 12 Damage Taken 1271 | . 297 276 . 698 Core 296 | . 79 40 . 177 Absorbed by Shields . | . . . . . Core Remaining (%) 100 | 100 . . . . Volleys Fired 58 | . 35 11 . 12 Largest 2 | . 2 2 . 2 Hottest 90 | . 55 90 . 78 Shots Fired 103 | . 60 20 . 23 Gun 61 | . 35 20 . 6 Cannon 16 | . 8 . . 8 Launcher 26 | . 17 . . 9 Special . | . . . . . Kinetic 56 | . 43 2 . 11 Thermal . | . . . . . Explosive 26 | . 17 . . 9 Electromagnetic 21 | . . 18 . 3 Robot Hit Streak 10 | . 10 5 . 7 Robot Miss Streak 3 | . 3 3 . 3 Penetration Max . | . . . . . Secondary Targets 1 | . . 1 . . Max Gunslinging Chain 1 | . . 1 . . Shots Hit Robots 54 | . 31 13 . 10 Core Hits 63 | . 42 6 . 15 Critical Kills . | . . . . . Critical Parts Destroyed . | . . . . . Critical Strikes . | . . . . . Melee Attacks . | . . . . . Impact . | . . . . . Slashing . | . . . . . Piercing . | . . . . . Sneak Attacks . | . . . . . Combat Hostiles . | . . . . . Follow-up Attacks . | . . . . . Damage Inflicted 2615 | . 1585 267 . 763 Guns 527 | . 265 193 . 69 Cannons 119 | . 85 . . 34 Explosions 1969 | . 1235 74 . 660 Melee . | . . . . . Ramming . | . . . . . Kinetic 436 | . 350 28 . 58 Thermal 74 | . . 74 . . Explosive 1775 | . 1115 . . 660 Electromagnetic 330 | . 120 165 . 45 Impact . | . . . . . Slashing . | . . . . . Piercing . | . . . . . Highest Corruption . | . . . . . Average Corruption . | . . . . . Corruption Purged . | . . . . . Corruption Blocked . | . . . . . Overload Shots . | . . . . . Overflow Damage 52 | . 27 24 . 1 Projectiles . | . . . . . Explosions 52 | . 27 24 . 1 Melee . | . . . . . Knockbacks 4 | . 3 . . 1 Impact . | . . . . . Kinetic 4 | . 3 . . 1 Secondary . | . . . . . Self-Inflicted Damage 234 | . 33 85 . 116 Shots 7 | . 2 2 . 3 Rammed . | . . . . . Targets Rammed . | . . . . . Kicked . | . . . . . Crushed . | . . . . . Highest Temperature 160 | . 16 160 . 96 Average Temperature 39 | . 5 69 . 29 Received Heat Transfer 261 | . 120 45 . 96 Siege Activations . | . . . . . Robots Corrupted . | . . . . . Combat Hostiles . | . . . . . Parts Fried . | . . . . . Impact Corruptions . | . . . . . Robots Melted . | . . . . . Combat Hostiles . | . . . . . Parts Melted . | . . . . . Heat Transferred 50 | . . 50 . . Parts Sabotaged . | . . . . . Parts Stolen . | . . . . . Parts Stripped . | . . . . . Power Chain Reactions 2 | . . 2 . . Alert | -11 -10 -10 -10 -9 ------- Run | Yrd Mat Min Exi Min Peak Influence 547 | . 547 257 . 154 Initial 107 | . . 107 . . Average 239 | . 323 205 . 132 Maximum Alert Level 2 | . 2 1 . . Low Security (%) 54 | 100 20 75 . 100 Level 1 27 | . 46 24 . . Level 2 17 | . 33 . . . Level 3 . | . . . . . Level 4 . | . . . . . Level 5 . | . . . . . High Security . | . . . . . Max Security . | . . . . . Squads Dispatched 5 | . 5 . . . Investigation 3 | . 3 . . . Extermination . | . . . . . Reinforcement 2 | . 2 . . . Assault . | . . . . . Garrison . | . . . . . Intercept . | . . . . . Searches Triggered . | . . . . . Construction Impeded . | . . . . . Haulers Reinforced . | . . . . . Active Scanning Responses . | . . . . . Cargo Convoy Interrupts . | . . . . . Stealth | -11 -10 -10 -10 -9 --------- Run | Yrd Mat Min Exi Min Distress Signals 5 | . 5 . . . Communications Jammed . | . . . . . Distress Signals . | . . . . . Times Spotted 41 | . 27 5 . 9 Peak Tracking Total 7 | . 7 3 . 6 Tactical Retreats 1 | . 1 . . . Traps | -11 -10 -10 -10 -9 ------- Run | Yrd Mat Min Exi Min Traps Triggered 2 | . 2 . . . Indirectly . | . . . . . Trap Hack Attempts . | . . . . . Triggered . | . . . . . Disarmed . | . . . . . Reprogrammed . | . . . . . Reused . | . . . . . Traps Extracted . | . . . . . Installed . | . . . . . Triggered 1 | . 1 . . . Machines | -11 -10 -10 -10 -9 ---------- Run | Yrd Mat Min Exi Min Machines Disabled 7 | . 4 3 . . Max in Single Turn 2 | . 2 2 . . Machines Repaired . | . . . . . Machines Dismantled . | . . . . . Machines Sabotaged . | . . . . . Overloaded Fab Kills . | . . . . . Hacking | -11 -10 -10 -10 -9 --------- Run | Yrd Mat Min Exi Min Machines Accessed 9 | . 5 . 4 . Terminals 4 | . 4 . . . Fabricators . | . . . . . Repair Stations . | . . . . . Recycling Units 1 | . 1 . . . Scanalyzers . | . . . . . Garrison Access . | . . . . . Total Hacks 58 | . 18 . 40 . Successful 52 | . 12 . 40 . Failed 5 | . 5 . . . Catastrophic 2 | . 2 . . . Database Lockouts 1 | . 1 . . . Manual 2 | . . . 2 . Terminals 16 | . 16 . . . Fabricators . | . . . . . Repair Stations . | . . . . . Recycling Units 2 | . 2 . . . Scanalyzers . | . . . . . Garrison Access . | . . . . . Terminal Hacks 51 | . 11 . 40 . Record 44 | . 4 . 40 . Robot Analysis 2 | . 2 . . . Branch Access Points 1 | . 1 . . . Emergency Access Points 1 | . 1 . . . Locate Traps 2 | . 2 . . . Registered Components 1 | . 1 . . . Fabricator Hacks . | . . . . . Repair Station Hacks . | . . . . . Recycling Unit Hacks 1 | . 1 . . . Retrieve Components 1 | . 1 . . . Scanalyzer . | . . . . . Garrison Access Hacks . | . . . . . Unauthorized Hacks . | . . . . . Terminals . | . . . . . Fabricators . | . . . . . Repair Stations . | . . . . . Recycling Units . | . . . . . Scanalyzers . | . . . . . Garrison Access . | . . . . . Data Cores Recovered . | . . . . . Used . | . . . . . Hacking Detections 5 | . 5 . . . Full Trace Events 2 | . 2 . . . Feedback Events . | . . . . . Feedback Blocked . | . . . . . Robot Schematics Acquired . | . . . . . Robots Built . | . . . . . Authchips . | . . . . . Time . | . . . . . Total Robot Build Rating . | . . . . . Part Schematics Acquired . | . . . . . Parts Built . | . . . . . Authchips . | . . . . . Time . | . . . . . Total Part Build Rating . | . . . . . Parts Repaired . | . . . . . Time . | . . . . . Parts Recycled . | . . . . . Recycled Matter . | . . . . . Retrieved Matter . | . . . . . Retrieved Components 10 | . 10 . . . Parts Scanalyzed . | . . . . . Part Schematics Acquired . | . . . . . Parts Damaged . | . . . . . Bothacking | -11 -10 -10 -10 -9 ------------ Run | Yrd Mat Min Exi Min Used RIF Installer . | . . . . . Robots Hacked . | . . . . . Non-combat . | . . . . . Combat . | . . . . . Robot Hacks Applied . | . . . . . Relay Couplers Released . | . . . . . Fabnet Peak Effective % . | . . . . . Robots Rewired . | . . . . . Allies Hacked . | . . . . . Hacks Repelled . | . . . . . Allies | -11 -10 -10 -10 -9 -------- Run | Yrd Mat Min Exi Min Total Allies . | . . . . . Largest Group . | . . . . . Highest-Rated Group . | . . . . . Highest-Rated Ally . | . . . . . Total Orders . | . . . . . Ally Attacks . | . . . . . Total Damage . | . . . . . Kills . | . . . . . Allies Corrupted . | . . . . . Allies Melted . | . . . . . Intel | -11 -10 -10 -10 -9 ------- Run | Yrd Mat Min Exi Min Robot Analysis Total 2 | . 2 . . . Derelict Logs Recovered 2 | . . 1 . 1 Drone Launches . | . . . . . Drone Recoveries . | . . . . . Exploration | -11 -10 -10 -10 -9 ------------- Run | Yrd Mat Min Exi Min Turns Passed 2212 | 46 814 233 662 457 Spaces Moved 1842 | 37 607 183 620 395 Core 12 | 12 . . . . Treads . | . . . . . Legs . | . . . . . Wheels 1830 | 25 607 183 620 395 Hover . | . . . . . Flight . | . . . . . Fastest Speed 50 | 50 90 90 105 105 Average Speed 103 | 77 103 103 105 105 Slowest Speed 120 | 90 120 105 105 105 Overloaded Moves . | . . . . . Propulsion Burnouts . | . . . . . Robots Hopped . | . . . . . Cave-ins Triggered 1 | . . . . 1 Exploration Rate (%) 62 | 4 89 49 95 74 Regions Visited 4 Branch Regions 3 Pre-discovered Areas 1 | . . . 1 . Known Exits Taken 1 | . 1 . . . Unknown Exits Taken 3 | 1 . 1 1 . Scrap Searched 3 | . . 1 . 2 Spaces Dug . | . . . . . Terrain Destroyed 131 | . 62 . . 69 Melee . | . . . . . Projectile . | . . . . . AOE 131 | . 62 . . 69 Terrain Rammed . | . . . . . Walls Destroyed . | . . . . . Machines Disabled . | . . . . . Actions | -11 -10 -10 -10 -9 --------- Run | Yrd Mat Min Exi Min Total 2036 | 54 732 204 631 415 Wait 52 | . 51 1 . . Move 1838 | 36 606 182 619 395 Hop . | . . . . . Pick Up 40 | 10 23 2 2 3 Fast Attach 2 | . 1 . 1 . Attach 20 | 7 6 3 1 3 Detach 2 | 1 . . 1 . Swap 10 | . 3 4 1 2 Drop 10 | . 7 1 2 . Fire 58 | . 35 11 . 12 Melee . | . . . . . Ram . | . . . . . Kick . | . . . . . Crush . | . . . . . Escape Stasis . | . . . . . Rewire 4 | . . . 4 . Trap . | . . . . . Miscellaneous . | . . . . . Route ------- -11/Scrapyard -10/Materials (discovered 3 exits: [*Mat] / *Min x2) -10/Mines -10/Exiles (discovered 2 exits: [*Min x2]) -9/Mines (discovered 1 exit: [*Mat]) History --------- Turn | Location | Event 17 | -11/Scrapyard | Discovered new exit (range 15) 47 | -11/Scrapyard | Entered Materials 119 | -10/Materials | Identified exit to Mines 307 | -10/Materials | Build established: Mutant 432 | -10/Materials | Discovered new exit (range 18) 680 | -10/Materials | Central database locked down 861 | -10/Materials | Entered Mines 1009 | -10/Mines | Learned 8 Materials zone layouts 1078 | -10/Mines | Received a Rocket Launcher from a helpful Derelict 1089 | -10/Mines | Deemed a non-threat by the Exiles lab entrance 1090 | -10/Mines | Discovered new exit (range 5) 1094 | -10/Mines | Entered Exiles 1122 | -10/Exiles | Met 8R-AWN 1141 | -10/Exiles | Met EX-HEX 1190 | -10/Exiles | Met EX-BIN 1201 | -10/Exiles | Aligned with FarCom system 1202 | -10/Exiles | Given EX-Vault access code 1227 | -10/Exiles | Opened EX-Vault 1235 | -10/Exiles | Found Prototype Flight Unit 1242 | -10/Exiles | Found Prototype Energy Cannon 1243 | -10/Exiles | Identified Latent Energy Streamer 1247 | -10/Exiles | Found Prototype Energy Cannon 1247 | -10/Exiles | Identified Gui. Plasma Cannon 1301 | -10/Exiles | Warned to stay clear of 0b10 Research branches 1328 | -10/Exiles | Met EX-DEC 1334 | -10/Exiles | Learned location of Zion (-6) 1377 | -10/Exiles | Visited The Gauntlet 1574 | -10/Exiles | Discovered new exit (range 17) 1746 | -10/Exiles | Discovered new exit (range 10) 1756 | -10/Exiles | Left Exiles lab with Flying Fortress v7 1756 | -10/Exiles | Entered Mines 1767 | -9/Mines | Core integrity fell below 50% 1838 | -9/Mines | Learned 2 Materials zone layouts 1867 | -9/Mines | Found a damaged Exp. Sensor Array with a note attached 1871 | -9/Mines | Found Prototype Device 2012 | -9/Mines | Discovered new exit (range 18) 2214 | -9/Mines | Crushed by falling debris 2214 | -9/Mines | Smashed by cave-in Last Messages --------------- 02202_ R-06 Scavenger destroyed. 02202_ Destroyed Flight Unit. 02204_ S-10 Pest destroyed. 02205_ U-05 Engineer lays Concrete. 02207_ R-06 Scavenger collects Aluminum Leg. 02208_ U-05 Engineer lays Concrete. 02210_ The unstable cave ceiling collapses. 02210_ U-05 Engineer lays Concrete. 02211_ The unstable cave ceiling collapses. 02211_ U-05 Engineer lays Concrete. 02212_ S-10 Pest destroyed. 02213_ U-05 Engineer lays Concrete. 02214_ The unstable cave ceiling collapses. 02214_ Crushed by falling debris. 02214_ Ion Engine destroyed. 02214_ System corrupted by crushing effect (+5). 02214_ Visual Processing Unit destroyed. 02214_ System corrupted by crushing effect (+2). 02214_ Arm. Wheel destroyed. 02214_ System corrupted by crushing effect (+2). Map ----- +----------------------------------------------------+ | ??????# ## ##????????????## # # # | | ??????# # # ##???????????# ^ ^ # | | ??????# = [ = ###?????????# ## # | | ??????# = ##????????# | | ??????# ### #????????## | | ?????#### # ## ##?### #????????## ###### | | ????## #### ########????# #???????## ##???## | | ##### #####???????????# #???????# ####??## | | # ####???????????# #?####### ##??? | | ######??????# #?# ##?? | | ??### #?# ##### #?? | | ####?#???# #?? #???#### ## #? | | ##????# ??# ###?# #??????# #?# # | | # ##?????# ## ###?# #??????# #??# # | | ## ##??????# t #?# #?????## ##??##### | | ?## #???????# #?# #?????# #??????? | | ### ##???????###### #?# #?????# #??????? | | # ##############??# #?# #?????# ######?? | | [= #??# ### #????## ## ##? | | !% #??# ## ###### #? | | # ############# #?## !! #? | | ## ##???????????# ### #? | | ?# #????????????# u ###### ##? | | ## #????????????# #???## ##?? | | # ##?????####???###### ##??## #??? | | # ##?????# ##???????# @ ##??## ##?? | | # ##????# #???????## ##???# #?? | | # ##??# #????????# ##????# #?? | | ### #????????# #????## ##?? | | #????????? % ????## ##??? | | ## ##????????? = #### #???? | | # ####??????????# t #???? | | # ##????????????? [ #???? | | ## ######????????? u #### #### #???? | | ?### #??????? #??# ???## #???? | | #??## ####### #??????## [ ##??# ????## ##???? | | ##### ##???????????????? ???#??????# #????? | | ## #????????????????? ??????????# ###### | | # #????????????????? < #?????????# | | #?????????????????" #?# ### # | | ####?????????????????" #?# #?# ## | | #????????????????????? ???# #######?# ## | | #????????????????????? ???# ??????????# #? | | # #???????????????????????#??# ????????????# ## | | ## #??????????????????????????#??????????????# | | ?# ####??????????????????????????????????????#### | | ?# #?????????????????????????????????????????? | | ?## ## #?????????????????????????????????????????? | | ??# #??#?????????????????????????????????????????? | | ??# #????????????????????????????????????????????? | +----------------------------------------------------+ Best States ------------- Heat Dissipation 25 Energy Generation 10 Energy Capacity 250 Matter Stores 300 Matter Capacity 300 Sight Range 18 Terrain Scan Density 10 Evasion (%) 50 Item Schematics ----------------- None Robot Schematics ------------------ None Fabricated ------------ Nothing Alien Tech Used ----------------- None Achievements -------------- None Challenges ------------ None Game ------ Seed ColdIntegrityTendrils Manual? 0 Play Time 00:29:50 Cumulative 18.1 hours Start 2024.05.14 @ 19:04:00 End 2024.05.14 @ 19:34:41 Sessions 1 Manual Loads 0 Difficulty Rogue Special Mode None Game No. 24 Rogue 24 Adventurer 0 Explorer 0 Win Type - Total 0 Types 0/0/0/0/0/0/0/0/0 Lore% 19 Gallery% 27 Achievement% 20 Wizard Run 0 Options --------- Layout 1 ASCII 0 Keyboard 0 Movement Mouse Keybinds 0 Fullscreen 1 Font 32/SmallcapsGlow Map View 50x35 Zoom Use 0% Tactical HUD 1 Map Filters NONE Filters NONE Steam 1 RUN: c7ca1021-c847-46c2-9498-278da264d0e6